Workbook

Sheet Calibration Data
A1: Powder: | B1: Win 231 | E1: Note: Data for Win 231 if only an example. You must generate data using your own powder bar.
A2: Powder Bar: | B2: Arredondo
A3: Brass: | B3: .38 Special | E3: Note: Use a cartridge case with enough capacity to hold the largest powder charge thrown.
A5: Micrometer Setting ** | B5: Charge #1 | C5: Charge #2 | D5: Charge #3 | E5: Charge #4 | F5: Charge #5 | G5: Avg. Charge Weight | H5: Avg. Charge Weight
A6: 0.05 | B6: 0.6 | C6: 0.6 | D6: 0.6 | G6: =IF(SUM(B6:F6)=0,"",AVERAGE(B6:F6)) -> 0.60 | H6: =IF(SUM(B6:F6)=0,#N/A,AVERAGE(B6:F6)) -> 0.60 | K6: Micrometer Setting Calculator
A7: 0.15 | B7: 0.9 | C7: 0.9 | D7: 0.9 | G7: 0.90 | J7: For ≥2.0 Grains:
A8: 0.25 | B8: 1.1 | C8: 1.1 | D8: 1.1 | G8: 1.10 | H8: =IF(SUM(B8:F8)=0,#N/A,AVERAGE(B8:F8)) -> 1.10 | K8: Enter Desired Grains: | L8: 5.0
A9: 0.32 | B9: 1.4 | C9: 1.4 | D9: 1.4 | G9: 1.40 | K9: Micrometer Setting = | L9: =(L8-G43)/G42 -> 2.00
A10: 0.40 | B10: 1.5 | C10: 1.5 | D10: 1.5 | G10: 1.50
A11: 0.50 | B11: 1.6 | C11: 1.7 | D11: 1.6 | G11: 1.63 | H11: =IF(SUM(B11:F11)=0,#N/A,AVERAGE(B11:F11)) -> 1.63 | J11: For <2.0 Grains:
A12: 0.65 | B12: 2.1 | C12: 2.1 | D12: 2.1 | G12: 2.10 | K12: Enter Desired Grains: | L12: 1.5
A13: 0.75 | B13: 2.2 | C13: 2.2 | D13: 2.2 | G13: 2.20 | H13: =IF(SUM(B13:F13)=0,#N/A,AVERAGE(B13:F13)) -> 2.20 | K13: Micrometer Setting = | L13: =(L12-I43)/I42 -> 0.41
A14: 0.85 | B14: 2.6 | C14: 2.6 | D14: 2.6 | G14: 2.60
A15: 1.00 | B15: 2.8 | C15: 2.8 | D15: 2.8 | G15: 2.80 | H15: =IF(SUM(B15:F15)=0,#N/A,AVERAGE(B15:F15)) -> 2.80
A16: 1.25 | B16: 3.4 | C16: 3.4 | D16: 3.4 | G16: 3.40 | H16: 3.40
A17: 1.50 | B17: 4.0 | C17: 4.0 | D17: 4.0 | G17: 4.00 | H17: 4.00
A18: 1.75 | B18: 4.6 | C18: 4.5 | D18: 4.5 | G18: 4.53 | H18: 4.53
A19: 2.00 | B19: 5.0 | C19: 5.1 | D19: 5.0 | G19: 5.03 | H19: 5.03
A20: 2.25 | B20: 5.7 | C20: 5.6 | D20: 5.7 | G20: 5.67 | H20: 5.67
A21: 2.50 | B21: 6.2 | C21: 6.2 | D21: 6.2 | G21: 6.20 | H21: 6.20
A22: 2.75 | B22: 6.7 | C22: 6.7 | D22: 6.7 | G22: 6.70 | H22: 6.70
A23: 3.00 | B23: 7.3 | C23: 7.3 | D23: 7.3 | G23: 7.30 | H23: 7.30
A24: 3.25 | B24: 7.9 | C24: 7.9 | D24: 7.9 | G24: 7.90 | H24: 7.90
A25: 3.50 | B25: 8.4 | C25: 8.4 | D25: 8.4 | G25: 8.40 | H25: 8.40
A26: 3.75 | B26: 8.9 | C26: 8.9 | D26: 8.9 | G26: 8.90 | H26: 8.90
A27: 4.00 | B27: 9.4 | C27: 9.4 | D27: 9.4 | G27: 9.40 | H27: 9.40
A28: 4.25 | B28: 10.0 | C28: 9.9 | D28: 10.0 | G28: 9.97 | H28: 9.97
A29: 4.50 | B29: 10.5 | C29: 10.5 | D29: 10.5 | G29: 10.50 | H29: 10.50
A30: 4.75 | B30: 11.0 | C30: 11.0 | D30: 11.0 | G30: 11.00 | H30: 11.00
A31: 5.00 | B31: 11.5 | C31: 11.5 | D31: 11.5 | G31: 11.50 | H31: 11.50
A32: 5.25 | B32: 12.0 | C32: 12.0 | D32: 12.0 | G32: 12.00 | H32: 12.00
A33: 5.50 | B33: 12.6 | C33: 12.5 | D33: 12.6 | G33: 12.57 | H33: 12.57
A34: 5.75 | B34: 13.1 | C34: 13.1 | D34: 13.1 | G34: 13.10 | H34: 13.10
A35: 6.00 | B35: 13.6 | C35: 13.6 | D35: 13.6 | G35: 13.60 | H35: 13.60
A36: 6.25 | B36: 14.0 | C36: 14.1 | D36: 14.1 | G36: 14.07 | H36: 14.07
A37: 6.50 | B37: 14.5 | C37: 14.5 | D37: 14.5 | G37: 14.50 | H37: 14.50
A38: 6.75 | B38: 14.9 | C38: 15.0 | D38: 15.0 | G38: 14.97 | H38: 14.97 | I38: < Maximum micrometer setting possible with Arredondo Powder Drop Slide
A39: 7.00
A40: 7.25
A41: 7.50 | I41: <2.0 Grains
F42: Slope (m) = | G42: =IF(SUM(G6:G41)=0,"",SLOPE(G6:G41,A6:A41)) -> 2.1568 | I42: =IF(SUM(G6:G12)=0,"",SLOPE(G6:G12,A6:A12)) -> 2.4044
A43: Copyright 2004 by UniqueTek, Inc. | F43: y-intercept = | G43: =IF(SUM(G6:G41)=0,"",INTERCEPT(G6:G41,A6:A41)) -> 0.6968 | I43: =IF(SUM(G6:G12)=0,"",INTERCEPT(G6:G12,A6:A12)) -> 0.5222
A44: Rev. 3 3/2/07 | F44: R2 = | G44: =IF(SUM(G6:G41)=0,"",RSQ(G6:G41,A6:A41)) -> 0.999390 | I44: =IF(SUM(G6:G12)=0,"",RSQ(G6:G12,A6:A12)) -> 0.984442 | J44: Charge weight values should be considered supspect if R2 values
J45: are less than .995.

Sheet Instructions
A1: Instructions for using the Calibration Curve spread sheet
A3: 1. Clear any charge weight data already in the data cells.
A4: Note: The data for Win 231 included in this spread sheet is only an example. Due to the small differences
A5: between powder bars, you must generate data for Win 231 using your own powder bar.
A7: 2. Enter data into the Charge Weight cells.
A8: • Weigh at least 3 powder charges at each micrometer setting.
A9: • Cells for up to 5 charge weights at each micrometer setting have been included, but you don't have to fill them all.
A10: • If you are creating a Calibration Curve for the entire micrometer setting range, you can weigh charges at just the
A11: micrometer settings in bold. This will yield sufficient accuracy to target new powder charge weights with the
A12: minimum work.
A14: 3. When all charge weight data has been entered, you can calculate the micrometer setting for any charge weight you
A15: desire by entering the charge weight into the Micrometer Setting Calculator to the right of the data table.
A17: Caution: Even when using a Calibration Curve containing data you generated yourself, you must weigh the powder to
A18: confirm the powder weight every time you change the micrometer setting.
A20: A Word On Accuracy
A21: Due to the numerous factors that influence powder bar accuracy, a single calibration curve covering the entire range
A22: of micrometer settings, may not yield the best accuracy over a narrow range of powder weights. When loading a narrow
A23: range of powder weights (e.g. 4.0 to 5.0 grains), you will obtain much better accuracy if you make a Calibration Curve
A24: that covers a limited range of powder weights (say from 3.5 to 5.5 grains), and measure powder charges at more
A25: closely spaced micrometer settings (e.g. 0.25 or 0.20 incriments).
A27: Powder Weights Below 2.0 Grains
A28: If you are loading powder weights below about 2.0 grains, it is highly recommend that you generate a calibration curve
A29: covering just that range of powder weights and use smaller micrometer increments. It is also recommended that you use
A30: a high-precision powder scale with accuracy better than 0.1 grain. A scale with 0.05 grain or, better yet, 0.02 grain
A31: accuracy is recommended. It should be noted that ony fine grained gunpowders are likely to meter accurately at these
A32: small powder wieghts.
A34: Modifying This Spread Sheet
A35: You are free to modify this spread sheet in any manner that suits you for your own personal use.
A36: You may not distribute modified versions of this spread sheet in any form either electronic or paper.
A37: You must turn off "protection" first by selecting Tools>Protection>Unprotect Sheet. There is no password protection.
A38: This spread sheet is provided as an Excel "template", so every time you open it, it will open with the set of example data.
A39: You can delete the example data, then save the sheet again as a template by selecting File>Save As and setting the
A40: File Type to Template. The new template will open with empty data cells.
A42: Disclaimer: The author of this spread sheet (UniqueTek, Inc.) believes all information and formulas to be true and accurate. However, UniqueTek, Inc. assumues
A43: no liability for damages or personal injury that may be incurred as a result of using this spread sheet or the Micrometer Powder Bar Kit in an improper way, or
A44: in an reloading press that has been improperly maintained or operated. It is your responsibility to ensure that your reloading equipment is properly assembled, is
A45: maintained in proper working condition, and is used according to the manufacturer’s instructions and safe reloading practices.
A47: Copyright 2004 by UniqueTek, Inc.
A48: Rev. 3 3/2/07
